fUST/lending_fUST_20250720
["ID","MTS","AMOUNT","RATE_DAILY","PERIOD"]
[373413265,1752990646546,-460.0,0.00018834,2]
[373413266,1752990646556,-460.0,0.00018834,2]
[373413267,1752990646566,-460.0,0.00018834,2]
[373413268,1752990646576,-460.0,0.00018834,2]
[373413269,1752990646586,-674.32,0.00018834,2]
[373413270,1752990646596,-460.0,0.00018834,2]
[373413271,1752990646605,-1033.35,0.00018834,2]
[373413272,1752990646615,-460.0,0.00018834,2]
[373413273,1752990646624,-460.0,0.00018834,2]
[373413274,1752990646634,-1051.82,0.00018834,2]
[373413275,1752990646643,-460.0,0.00018834,2]
[373413276,1752990646652,-460.0,0.00018834,2]
[373413277,1752990646662,-460.0,0.00018834,2]
[373413278,1752990646768,-4205.3,0.00018835,2]
[373413279,1752990646778,-340.21,0.00018835,2]
[373413280,1752990646788,-1521.82,0.00018835,2]
[373413281,1752990646797,-312.12986255,0.00018835,2]
[373413282,1752990646807,-460.0,0.00018835,2]
[373413283,1752990646816,-460.0,0.00018835,2]
[373413284,1752990646825,-460.0,0.00018835,2]
[373413285,1752990646834,-2109.81505385,0.000189,2]
[373413286,1752990646844,-377.28817053,0.00018933,2]
[373413287,1752990646853,-188.27,0.00018933,2]
[373413288,1752990646862,-460.0,0.00018933,2]
[373413289,1752990646872,-460.0,0.00018933,2]
[373413290,1752990646881,-1795.05,0.00018935,2]
[373413291,1752990646891,-595.67,0.00018935,2]
[373413292,1752990646900,-678.89,0.00018935,2]
[373413293,1752990646910,-831.66,0.00019036,2]
[373413294,1752990646919,-460.0,0.00019036,2]
[373413295,1752990646929,-568.32,0.00019036,2]
[373413296,1752990646938,-873.95,0.00019036,2]
[373413297,1752990646948,-240.51184596,0.00019036,2]
[373413298,1752990646958,-420.0,0.00019061,2]
[373413299,1752990646967,-460.0,0.00019107,2]
[373413300,1752990646976,-460.0,0.00019107,2]
[373413301,1752990646986,-460.0,0.00019107,2]
[373413302,1752990646995,-1089.66,0.00019107,2]
[373413303,1752990647004,-379.24000003,0.00019107,2]
[373413304,1752990647013,-460.0,0.00019107,2]
[373413305,1752990647023,-770.1,0.00019107,2]
[373413306,1752990647032,-460.0,0.00019107,2]
[373413307,1752990647041,-460.0,0.00019107,2]
[373413308,1752990647051,-460.0,0.00019107,2]
[373413309,1752990647060,-1867.66,0.00019107,2]
[373413310,1752990647069,-460.0,0.00019107,2]
[373413311,1752990647079,-1136.05,0.00019107,2]
[373413312,1752990647088,-460.0,0.00019108,2]
[373413313,1752990647097,-437.34,0.00019108,2]
[373413314,1752990647107,-355.73,0.00019108,2]
[373413315,1752990647115,-460.0,0.00019108,2]
[373413316,1752990647124,-460.0,0.00019108,2]
[373413317,1752990647133,-460.0,0.00019108,2]
[373413318,1752990647143,-460.0,0.00019108,2]
[373413319,1752990647151,-460.0,0.00019108,2]
[373413320,1752990647161,-460.0,0.00019108,2]
[373413321,1752990647170,-460.0,0.00019108,2]
[373413322,1752990647180,-460.0,0.00019108,2]
[373413323,1752990647189,-460.0,0.00019108,2]
[373413324,1752990647200,-460.0,0.00019108,2]
[373413325,1752990647209,-460.0,0.00019108,2]
[373413326,1752990647219,-460.0,0.00019108,2]
[373413327,1752990647229,-674.32,0.00019108,2]
[373413328,1752990647239,-460.0,0.00019108,2]
[373413329,1752990647248,-1033.35,0.00019108,2]
[373413330,1752990647257,-460.0,0.00019108,2]
[373413331,1752990647266,-460.0,0.00019108,2]
[373413332,1752990647276,-1051.82,0.00019108,2]
[373413333,1752990647285,-460.0,0.00019108,2]
[373413334,1752990647295,-460.0,0.00019108,2]
[373413335,1752990647304,-460.0,0.00019108,2]
[373413336,1752990647313,-4205.3,0.00019109,2]
[373413337,1752990647322,-1521.82,0.00019109,2]
[373413338,1752990647331,-460.0,0.00019109,2]
[373413339,1752990647340,-460.0,0.00019109,2]
[373413340,1752990647349,-568.09,0.00019109,2]
[373413341,1752990647358,-1680.0,0.00019154,2]
[373413342,1752990647367,-182.509569,0.00019178,2]
[373413343,1752990647376,-632.1316733,0.00019178,2]
[373413344,1752990647385,-666.0,0.00019178,2]
[373413345,1752990647394,-460.0,0.00019207,2]
[373413346,1752990647403,-460.0,0.00019207,2]
[373413347,1752990647412,-1795.05,0.00019209,2]
[373413348,1752990647420,-595.67,0.00019209,2]
[373413349,1752990647430,-678.89,0.00019209,2]
[373413350,1752990647439,-831.66,0.0001931,2]
[373413351,1752990647450,-576.06,0.0001931,2]
[373413352,1752990647460,-568.32,0.0001931,2]
[373413353,1752990647470,-873.95,0.0001931,2]
[373413354,1752990647479,-500.0,0.00019328,2]
[373413355,1752990647488,-500.0,0.00019328,2]
[373413356,1752990647499,-415.17863735,0.00019328,2]
[373413357,1752990647509,-500.0,0.00019328,2]
[373413358,1752990647519,-500.0,0.00019328,2]
[373413359,1752990647528,-348.92099452,0.00019328,2]
[373413360,1752990647536,-100000.0,0.00019329,2]
[373413361,1752990647546,-460.0,0.00019381,2]
[373413362,1752990647555,-460.0,0.00019381,2]
[373413363,1752990647564,-259.89,0.00019381,2]
[373413364,1752990647573,-1089.66,0.00019381,2]
[373413365,1752990647584,-460.0,0.00019381,2]
[373413366,1752990647593,-770.1,0.00019381,2]
[373413367,1752990647602,-460.0,0.00019381,2]
[373413368,1752990647610,-499.12,0.00019381,2]
[373413369,1752990647619,-460.0,0.00019381,2]
[373413370,1752990647628,-1867.66,0.00019381,2]
[373413371,1752990647638,-460.0,0.00019381,2]
[373413372,1752990647647,-176.61,0.00019382,2]
[373413373,1752990647656,-460.0,0.00019382,2]
[373413374,1752990647665,-600.17323963,0.00019382,2]
[373413375,1752990647675,-460.0,0.00019382,2]
[373413376,1752990647684,-460.0,0.00019382,2]
[373413377,1752990647693,-460.0,0.00019382,2]
[373413378,1752990647703,-460.0,0.00019382,2]
[373413379,1752990647712,-460.0,0.00019382,2]
[373413380,1752990647722,-460.0,0.00019382,2]
[373413381,1752990647731,-460.0,0.00019382,2]
[373413382,1752990647740,-460.0,0.00019382,2]
[373413383,1752990647749,-460.0,0.00019382,2]
[373413384,1752990647759,-460.0,0.00019382,2]
[373413385,1752990647768,-674.32,0.00019382,2]
[373413386,1752990647777,-460.0,0.00019382,2]
[373413387,1752990647786,-1033.35,0.00019382,2]
[373413388,1752990647796,-460.0,0.00019382,2]
[373413389,1752990647806,-460.0,0.00019382,2]
[373413390,1752990647816,-1051.82,0.00019382,2]
[373413391,1752990647826,-460.0,0.00019382,2]
[373413392,1752990647835,-460.0,0.00019382,2]
[373413393,1752990647845,-460.0,0.00019382,2]
[373413394,1752990647854,-4205.3,0.00019383,2]
[373413395,1752990647864,-1521.82,0.00019383,2]
[373413396,1752990647873,-460.0,0.00019383,2]
[373413397,1752990647883,-970.96172023,0.00019388,2]
[373413398,1752990647893,-230.98123516,0.00019416,2]
[373413399,1752990647903,-160.0,0.00019416,2]
[373413400,1752990647913,-214.5637056,0.00019416,2]
[373413401,1752990647922,-160.0,0.00019416,2]
[373413402,1752990647932,-160.0,0.00019416,2]
[373413403,1752990647941,-525.91036056,0.00019416,2]
[373413404,1752990647952,-215.71456056,0.00019416,2]
[373413405,1752990647962,-12615.16111038,0.00019416,2]
[373413406,1752990647972,-160.0,0.00019416,2]
[373413407,1752990647981,-160.0,0.00019416,2]
[373413408,1752990647991,-839.59621281,0.00019416,2]
[373413409,1752990648001,-160.0,0.00019416,2]
[373413410,1752990648011,-160.0,0.00019416,2]
[373413411,1752990648021,-371.01099773,0.0001942,2]
[373413412,1752990648031,-500.0,0.0001942,2]
[373413413,1752990648041,-460.0,0.00019481,2]
[373413414,1752990648050,-460.0,0.00019481,2]
[373413415,1752990648059,-1795.05,0.00019483,2]
[373413416,1752990648069,-595.67,0.00019483,2]
[373413417,1752990648079,-678.89,0.00019483,2]
[373413418,1752990648089,-831.66,0.00019584,2]
[373413419,1752990648098,-568.32,0.00019584,2]
[373413420,1752990648108,-873.95,0.00019584,2]
[373413421,1752990648117,-402.24706456,0.00019633,2]
[373413422,1752990648126,-460.0,0.00019655,2]
[373413423,1752990648136,-460.0,0.00019655,2]
[373413424,1752990648146,-1089.66,0.00019655,2]
[373413425,1752990648155,-460.0,0.00019655,2]
[373413426,1752990648164,-770.1,0.00019655,2]
[373413427,1752990648173,-460.0,0.00019655,2]
[373413428,1752990648183,-460.0,0.00019655,2]
[373413429,1752990648192,-1867.66,0.00019655,2]
[373413430,1752990648202,-460.0,0.00019655,2]
[373413431,1752990648212,-460.0,0.00019656,2]
[373413432,1752990648221,-460.0,0.00019656,2]
[373413433,1752990648230,-460.0,0.00019656,2]
[373413434,1752990648240,-460.0,0.00019656,2]
[373413435,1752990648249,-460.0,0.00019656,2]
[373413436,1752990648259,-460.0,0.00019656,2]
[373413437,1752990648268,-460.0,0.00019656,2]
[373413438,1752990648278,-460.0,0.00019656,2]
[373413439,1752990648287,-460.0,0.00019656,2]
[373413440,1752990648297,-460.0,0.00019656,2]
[373413441,1752990648307,-460.0,0.00019656,2]
[373413442,1752990648316,-674.32,0.00019656,2]
[373413443,1752990648326,-460.0,0.00019656,2]
[373413444,1752990648336,-1033.35,0.00019656,2]
[373413445,1752990648345,-460.0,0.00019656,2]
[373413446,1752990648355,-460.0,0.00019656,2]
[373413447,1752990648364,-1051.82,0.00019656,2]
[373413448,1752990648373,-460.0,0.00019656,2]
[373413449,1752990648383,-460.0,0.00019656,2]
[373413450,1752990648392,-306.66,0.00019656,2]
[373413451,1752990648402,-4205.3,0.00019657,2]
[373413452,1752990648411,-1521.82,0.00019657,2]
[373413453,1752990648420,-460.0,0.00019657,2]
[373413454,1752990648430,-460.0,0.00019755,2]
[373413455,1752990648439,-1795.05,0.00019757,2]
[373413456,1752990648449,-595.67,0.00019757,2]
[373413457,1752990648458,-831.66,0.00019858,2]
[373413458,1752990648468,-568.32,0.00019858,2]
[373413459,1752990648477,-873.95,0.00019858,2]
[373413460,1752990648487,-460.0,0.00019929,2]
[373413461,1752990648497,-460.0,0.00019929,2]
[373413462,1752990648511,-1089.66,0.00019929,2]
[373413463,1752990648520,-460.0,0.00019929,2]
[373413464,1752990648529,-770.1,0.00019929,2]
[373413465,1752990648539,-460.0,0.00019929,2]
[373413466,1752990648548,-460.0,0.00019929,2]
[373413467,1752990648558,-1867.66,0.00019929,2]
[373413468,1752990648568,-460.0,0.0001993,2]
[373413469,1752990648581,-460.0,0.0001993,2]
[373413470,1752990648592,-460.0,0.0001993,2]
[373413471,1752990648601,-460.0,0.0001993,2]
[373413472,1752990648611,-460.0,0.0001993,2]
[373413473,1752990648621,-460.0,0.0001993,2]
[373413474,1752990648630,-460.0,0.0001993,2]
[373413475,1752990648639,-460.0,0.0001993,2]
[373413476,1752990648648,-460.0,0.0001993,2]
[373413477,1752990648657,-460.0,0.0001993,2]
[373413478,1752990648667,-460.0,0.0001993,2]
[373413479,1752990648677,-674.32,0.0001993,2]
[373413480,1752990648687,-460.0,0.0001993,2]
[373413481,1752990648697,-1033.35,0.0001993,2]
[373413482,1752990648708,-460.0,0.0001993,2]
[373413483,1752990648718,-460.0,0.0001993,2]
[373413484,1752990648728,-1051.82,0.0001993,2]
[373413485,1752990648738,-307.19,0.0001993,2]
[373413486,1752990648747,-460.0,0.0001993,2]
[373413487,1752990648756,-4205.3,0.00019931,2]
[373413488,1752990648765,-1521.82,0.00019931,2]
[373413489,1752990648775,-460.0,0.00019931,2]
[373413490,1752990648784,-274.06147548,0.00019968,2]
[373413491,1752990648794,-267.564017,0.0001998,2]
[373413492,1752990648803,-460.0,0.00020029,2]
[373413493,1752990648813,-1795.05,0.00020031,2]
[373413494,1752990648823,-595.67,0.00020031,2]
[373413495,1752990648833,-831.66,0.00020132,2]
[373413496,1752990648842,-568.32,0.00020132,2]
[373413497,1752990648851,-873.95,0.00020132,2]
[373413498,1752990648861,-460.0,0.00020203,2]
[373413499,1752990648870,-460.0,0.00020203,2]
[373413500,1752990648879,-1089.66,0.00020203,2]
[373413501,1752990648890,-460.0,0.00020203,2]
[373413502,1752990648899,-770.1,0.00020203,2]
[373413503,1752990648909,-460.0,0.00020203,2]
[373413504,1752990648919,-460.0,0.00020203,2]
[373413505,1752990648927,-1867.66,0.00020203,2]
[373413506,1752990648937,-247.96657771,0.00020204,2]
[373413507,1752990648946,-460.0,0.00020204,2]
[373413508,1752990648957,-394.05023351,0.00020204,2]
[373413509,1752990648966,-473.88,0.00020204,2]
[373413510,1752990648975,-460.0,0.00020204,2]
[373413511,1752990648984,-460.0,0.00020204,2]
[373413512,1752990648994,-460.0,0.00020204,2]
[373413513,1752990649003,-460.0,0.00020204,2]
[373413514,1752990649012,-529.51,0.00020204,2]
[373413515,1752990649021,-674.32,0.00020204,2]
[373413516,1752990649031,-460.0,0.00020204,2]
[373413517,1752990649041,-1033.35,0.00020204,2]
[373413518,1752990649051,-460.0,0.00020204,2]
[373413519,1752990649060,-460.0,0.00020204,2]
[373413520,1752990649070,-1051.82,0.00020204,2]
[373413521,1752990649079,-460.0,0.00020204,2]
[373413522,1752990649180,-4205.3,0.00020205,2]
[373413523,1752990649202,-1521.82,0.00020205,2]
[373413524,1752990649212,-229.23377201,0.00020205,2]
[373413525,1752990649221,-460.0,0.00020303,2]
[373413526,1752990649231,-1795.05,0.00020305,2]
[373413527,1752990649240,-595.67,0.00020305,2]
[373413528,1752990649250,-970.96172023,0.00020395,2]
[373413529,1752990649260,-831.66,0.00020406,2]
[373413530,1752990649269,-568.32,0.00020406,2]
[373413531,1752990649278,-873.95,0.00020406,2]
[373413532,1752990649287,-460.0,0.00020477,2]
[373413533,1752990649296,-460.0,0.00020477,2]
[373413534,1752990649306,-1089.66,0.00020477,2]
[373413535,1752990649316,-460.0,0.00020477,2]
[373413536,1752990649325,-770.1,0.00020477,2]
[373413537,1752990649335,-501.84716513,0.00020477,2]
[373413538,1752990649344,-460.0,0.00020477,2]
[373413539,1752990649353,-1867.66,0.00020477,2]
[373413540,1752990649362,-460.0,0.00020478,2]
[373413541,1752990649371,-601.45,0.00020478,2]
[373413542,1752990649381,-239.08,0.00020478,2]
[373413543,1752990649390,-460.0,0.00020478,2]
[373413544,1752990649400,-224.09,0.00020478,2]
[373413545,1752990649410,-674.32,0.00020478,2]
[373413546,1752990649419,-460.0,0.00020478,2]
[373413547,1752990649428,-1033.35,0.00020478,2]
[373413548,1752990649437,-460.0,0.00020478,2]
[373413549,1752990649447,-1051.82,0.00020478,2]
[373413550,1752990649457,-460.0,0.00020478,2]
[373413551,1752990649467,-4205.3,0.00020479,2]
[373413552,1752990649475,-1521.82,0.00020479,2]
[373413553,1752990649485,-342.53766991,0.00020577,2]
[373413554,1752990649495,-1795.05,0.00020579,2]
[373413555,1752990649507,-595.67,0.00020579,2]
[373413556,1752990649516,-831.66,0.0002068,2]
[373413557,1752990649526,-568.32,0.0002068,2]
[373413558,1752990649535,-873.95,0.0002068,2]
[373413559,1752990649544,-460.0,0.00020751,2]
[373413560,1752990649555,-460.0,0.00020751,2]
[373413561,1752990649564,-1089.66,0.00020751,2]
[373413562,1752990649574,-460.0,0.00020751,2]
[373413563,1752990649584,-770.1,0.00020751,2]
[373413564,1752990649595,-196.63792919,0.00020751,2]
[373413565,1752990649605,-1867.66,0.00020751,2]
[373413566,1752990649614,-460.0,0.00020752,2]
[373413567,1752990649623,-460.0,0.00020752,2]
[373413568,1752990649632,-674.32,0.00020752,2]
[373413569,1752990649641,-460.0,0.00020752,2]
[373413570,1752990649651,-1033.35,0.00020752,2]
[373413571,1752990649660,-460.0,0.00020752,2]
[373413572,1752990649670,-1051.82,0.00020752,2]
[373413573,1752990649680,-193.97,0.00020752,2]
[373413574,1752990649689,-4205.3,0.00020753,2]
[373413575,1752990649699,-1521.82,0.00020753,2]
[373413576,1752990649710,-454.11957381,0.00020765,2]
[373413577,1752990649720,-402.24706456,0.00020768,2]
[373413578,1752990649729,-587.0,0.00020809,2]
[373413579,1752990649738,-1795.05,0.00020853,2]
[373413580,1752990649747,-595.67,0.00020853,2]
[373413581,1752990649756,-839.776,0.00020856,2]
[373413582,1752990649766,-831.66,0.00020954,2]
[373413583,1752990649775,-568.32,0.00020954,2]
[373413584,1752990649784,-873.95,0.00020954,2]
[373413585,1752990649793,-427.20373491,0.00021025,2]
[373413586,1752990649803,-460.0,0.00021025,2]
[373413587,1752990649814,-1089.66,0.00021025,2]
[373413588,1752990649824,-460.0,0.00021025,2]
[373413589,1752990649834,-770.1,0.00021025,2]
[373413590,1752990649844,-1867.66,0.00021025,2]
[373413591,1752990649854,-460.0,0.00021026,2]
[373413592,1752990649865,-460.0,0.00021026,2]
[373413593,1752990649875,-674.32,0.00021026,2]
[373413594,1752990649884,-460.0,0.00021026,2]
[373413595,1752990649893,-1033.35,0.00021026,2]
[373413596,1752990649904,-460.0,0.00021026,2]
[373413597,1752990649914,-1051.82,0.00021026,2]
[373413598,1752990649924,-4205.3,0.00021027,2]
[373413599,1752990649934,-1521.82,0.00021027,2]
[373413600,1752990649944,-500.0,0.00021064,2]
[373413601,1752990649955,-10454.89972614,0.00021082,2]
[373413602,1752990649964,-1795.05,0.00021127,2]
[373413603,1752990649973,-595.67,0.00021127,2]
[373413604,1752990649983,-831.66,0.00021228,2]
[373413605,1752990649993,-568.32,0.00021228,2]
[373413606,1752990650004,-873.95,0.00021228,2]
[373413607,1752990650013,-460.0,0.00021299,2]
[373413608,1752990650023,-1089.66,0.00021299,2]
[373413609,1752990650032,-497.23556016,0.00021299,2]
[373413610,1752990650042,-770.1,0.00021299,2]
[373413611,1752990650055,-1867.66,0.00021299,2]
[373413612,1752990650075,-460.0,0.000213,2]
[373413613,1752990650085,-460.0,0.000213,2]
[373413614,1752990650095,-674.32,0.000213,2]
[373413615,1752990650105,-460.0,0.000213,2]
[373413616,1752990650115,-1033.35,0.000213,2]
[373413617,1752990650125,-460.0,0.000213,2]
[373413618,1752990650136,-1051.82,0.000213,2]
[373413619,1752990650146,-4205.3,0.00021301,2]
[373413620,1752990650155,-1521.82,0.00021301,2]
[373413621,1752990650164,-1795.05,0.00021401,2]
[373413622,1752990650173,-595.67,0.00021401,2]
[373413623,1752990650182,-970.96172023,0.00021402,2]
[373413624,1752990650191,-472.88670851,0.00021473,2]
[373413625,1752990650200,-136116.37957163,0.000215,2]
[373413626,1752990650209,-831.66,0.00021502,2]
[373413627,1752990650219,-568.32,0.00021502,2]
[373413628,1752990650228,-873.95,0.00021502,2]
[373413629,1752990650238,-460.0,0.00021573,2]
[373413630,1752990650247,-1089.66,0.00021573,2]
[373413631,1752990650258,-770.1,0.00021573,2]
[373413632,1752990650280,-1867.66,0.00021573,2]
[373413633,1752990650290,-216.12,0.00021574,2]
[373413634,1752990650301,-460.0,0.00021574,2]
[373413635,1752990650311,-674.32,0.00021574,2]
[373413636,1752990650330,-460.0,0.00021574,2]
[373413637,1752990650340,-1033.35,0.00021574,2]
[373413638,1752990650350,-460.0,0.00021574,2]
[373413639,1752990650359,-1051.82,0.00021574,2]
[373413640,1752990650370,-4205.3,0.00021575,2]
[373413641,1752990650380,-1521.82,0.00021575,2]
[373413642,1752990650390,-7335.67323225,0.00021628,2]
[373413643,1752990650399,-1795.05,0.00021675,2]
[373413644,1752990650410,-595.67,0.00021675,2]
[373413645,1752990650420,-831.66,0.00021776,2]
[373413646,1752990650430,-568.32,0.00021776,2]
[373413647,1752990650440,-873.95,0.00021776,2]
[373413648,1752990650449,-7335.67323226,0.00021821,2]
[373413649,1752990650459,-460.0,0.00021847,2]
[373413650,1752990650468,-1089.66,0.00021847,2]
[373413651,1752990650478,-770.1,0.00021847,2]
[373413652,1752990650488,-1867.66,0.00021847,2]
[373413653,1752990650499,-460.0,0.00021848,2]
[373413654,1752990650512,-674.32,0.00021848,2]
[373413655,1752990650521,-460.0,0.00021848,2]
[373413656,1752990650531,-1033.35,0.00021848,2]
[373413657,1752990650542,-460.0,0.00021848,2]
[373413658,1752990650554,-1051.82,0.00021848,2]
[373413659,1752990650564,-4205.3,0.00021849,2]
[373413660,1752990650575,-1521.82,0.00021849,2]
[373413661,1752990650587,-402.24706456,0.00021903,2]
[373413662,1752990650597,-1795.05,0.00021949,2]
[373413663,1752990650607,-595.67,0.00021949,2]
[373413664,1752990650616,-28023.21922394,0.00022,2]
[373413665,1752990650626,-6445.0,0.00022,7]
[373413666,1752990650635,-1033.72,0.00022,7]
[373413667,1752990650644,-3243.69,0.00022,7]
[373413668,1752990650654,-214.5637056,0.00022,7]
[373413669,1752990650663,-831.66,0.0002205,2]
[373413670,1752990650673,-568.32,0.0002205,2]
[373413671,1752990650683,-873.95,0.0002205,2]
[373413672,1752990650692,-460.0,0.00022121,2]
[373413673,1752990650703,-1089.66,0.00022121,2]
[373413674,1752990650713,-770.1,0.00022121,2]
[373413675,1752990650723,-1867.66,0.00022121,2]
[373413676,1752990650733,-460.0,0.00022122,2]
[373413677,1752990650743,-674.32,0.00022122,2]
[373413678,1752990650752,-460.0,0.00022122,2]
[373413679,1752990650762,-1033.35,0.00022122,2]
[373413680,1752990650771,-460.0,0.00022122,2]
[373413681,1752990650780,-1051.82,0.00022122,2]
[373413682,1752990650790,-4205.3,0.00022123,2]
[373413683,1752990650799,-1521.82,0.00022123,2]
[373413684,1752990650808,-500.0,0.0002216,2]
[373413685,1752990650817,-1795.05,0.00022223,2]
[373413686,1752990650827,-595.67,0.00022223,2]
[373413687,1752990650836,-831.66,0.00022324,2]
[373413688,1752990650845,-568.32,0.00022324,2]
[373413689,1752990650855,-873.95,0.00022324,2]
[373413690,1752990650864,-588.93,0.00022395,2]
[373413691,1752990650873,-1089.66,0.00022395,2]
[373413692,1752990650882,-770.1,0.00022395,2]
[373413693,1752990650892,-1867.66,0.00022395,2]
[373413694,1752990650901,-460.0,0.00022396,2]
[373413695,1752990650911,-674.32,0.00022396,2]
[373413696,1752990650920,-482.59,0.00022396,2]
[373413697,1752990650929,-1033.35,0.00022396,2]
[373413698,1752990650939,-472.08502389,0.00022396,2]
[373413699,1752990650948,-1051.82,0.00022396,2]
[373413700,1752990650958,-4205.3,0.00022397,2]
[373413701,1752990650968,-1521.82,0.00022397,2]
[373413702,1752990650978,-159.36810832,0.0002241,4]
[373413703,1752990650987,-1795.05,0.00022497,2]
[373413704,1752990650996,-595.67,0.00022497,2]
[373413705,1752990651005,-429.4514592,0.00022521,2]
[373413706,1752990651014,-429.4514592,0.00022521,2]
[373413707,1752990651024,-429.4514592,0.00022521,2]
[373413708,1752990651033,-858.9029184,0.00022521,2]
[373413709,1752990651042,-429.4514592,0.00022521,2]
[373413710,1752990651051,-429.4514592,0.00022521,2]
[373413711,1752990651060,-429.4514592,0.00022521,2]
[373413712,1752990651069,-429.4514592,0.00022521,2]
[373413713,1752990651078,-429.4514592,0.00022521,2]
[373413714,1752990651087,-429.4514592,0.00022521,2]
[373413715,1752990651096,-429.4514592,0.00022521,2]
[373413716,1752990651105,-429.4514592,0.00022521,2]
[373413717,1752990651114,-182.3567733,0.00022521,2]
[373413718,1752990651123,-831.66,0.00022598,2]
[373413719,1752990651132,-568.32,0.00022598,2]
[373413720,1752990651142,-873.95,0.00022598,2]
[373413721,1752990651151,-182.509569,0.00022603,2]
[373413722,1752990651160,-1089.66,0.00022669,2]
[373413723,1752990651169,-770.1,0.00022669,2]
[373413724,1752990651178,-1867.66,0.00022669,2]
[373413725,1752990651187,-460.0,0.0002267,2]
[373413726,1752990651197,-674.32,0.0002267,2]
[373413727,1752990651207,-1033.35,0.0002267,2]
[373413728,1752990651216,-1051.82,0.0002267,2]
[373413729,1752990651226,-4205.3,0.00022671,2]
[373413730,1752990651235,-1521.82,0.00022671,2]
[373413731,1752990651245,-518.41,0.00022686,4]
[373413732,1752990651254,-823.0,0.00022718,2]
[373413733,1752990651263,-1795.05,0.00022771,2]
[373413734,1752990651273,-595.67,0.00022771,2]
[373413735,1752990651282,-518.41,0.00022786,4]
[373413736,1752990651292,-831.66,0.00022872,2]
[373413737,1752990651301,-568.32,0.00022872,2]
[373413738,1752990651311,-873.95,0.00022872,2]
[373413739,1752990651320,-518.41,0.00022886,3]
[373413740,1752990651329,-151.0,0.000229,5]
[373413741,1752990651339,-153.0,0.00022932,2]
[373413742,1752990651349,-159.8396335,0.00022932,2]
[373413743,1752990651358,-577.2483964,0.00022932,2]
[373413744,1752990651368,-200.1295681,0.00022932,2]
[373413745,1752990651377,-577.2483964,0.00022932,2]
[373413746,1752990651474,-306.0,0.00022932,2]
[373413747,1752990651484,-159.8396335,0.00022932,2]
[373413748,1752990651494,-319.679267,0.00022932,2]
[373413749,1752990651507,-577.2483964,0.00022932,2]
[373413750,1752990651517,-153.0,0.00022932,2]
[373413751,1752990651526,-153.0,0.00022932,2]
[373413752,1752990651536,-153.0,0.00022932,2]
[373413753,1752990651547,-159.8396335,0.00022932,2]
[373413754,1752990651557,-159.8396335,0.00022932,2]
[373413755,1752990651567,-159.8396335,0.00022932,2]
[373413756,1752990651576,-159.8396335,0.00022932,2]
[373413757,1752990651586,-159.8396335,0.00022932,2]
[373413758,1752990651596,-158.9692058,0.00022932,2]
[373413759,1752990651606,-1089.66,0.00022943,2]
[373413760,1752990651616,-770.1,0.00022943,2]
[373413761,1752990651625,-1867.66,0.00022943,2]
[373413762,1752990651634,-460.0,0.00022944,2]
[373413763,1752990651644,-674.32,0.00022944,2]
[373413764,1752990651654,-1033.35,0.00022944,2]